[Event "Early-Titled-Tuesday-Blitz-May-07-2024"]
[Site "Chess.com"]
[Date "2024.05.07"]
[Round "6"]
[White "WiseKing_08"]
[Black "pauliukevicius"]
[Result "0-1"]
[WhiteElo "2588"]
[BlackElo "2444"]
[TimeControl "180+1"]
[EndTime "9:11:15 PDT"]
[Termination "pauliukevicius won by resignation"]

1. e4 {[%clk 0:03:00.9]} 1... e5 {[%clk 0:03:00]} 2. Nf3 {[%clk 0:03:00.3]} 2...
Nc6 {[%clk 0:03:00.7]} 3. Bb5 {[%clk 0:03:00.4]} 3... a6 {[%clk 0:03:00.6]} 4.
Bxc6 {[%clk 0:02:59.2]} 4... dxc6 {[%clk 0:03:00.8]} 5. O-O {[%clk 0:03:00.1]}
5... Bd6 {[%clk 0:03:01.1]} 6. d4 {[%clk 0:03:00.2]} 6... exd4 {[%clk
0:03:01.7]} 7. Qxd4 {[%clk 0:03:01.1]} 7... f6 {[%clk 0:03:01]} 8. Nbd2 {[%clk
0:03:01]} 8... c5 {[%clk 0:03:00.5]} 9. Qe3 {[%clk 0:02:59.2]} 9... Ne7 {[%clk
0:02:59.8]} 10. b3 {[%clk 0:02:58.4]} 10... O-O {[%clk 0:03:00.1]} 11. Bb2
{[%clk 0:02:58.6]} 11... Ng6 {[%clk 0:03:00.3]} 12. Nc4 {[%clk 0:02:57.6]} 12...
b5 {[%clk 0:03:00]} 13. Nxd6 {[%clk 0:02:08.8]} 13... cxd6 {[%clk 0:03:00.9]}
14. Rad1 {[%clk 0:02:08.4]} 14... Ra7 {[%clk 0:02:59.5]} 15. Rd3 {[%clk
0:01:37.1]} 15... Rd7 {[%clk 0:02:51.8]} 16. Rfd1 {[%clk 0:01:36.7]} 16... Qe7
{[%clk 0:02:52.3]} 17. Nd2 {[%clk 0:01:26.2]} 17... Bb7 {[%clk 0:02:43.7]} 18.
f3 {[%clk 0:01:25.3]} 18... d5 {[%clk 0:02:38.4]} 19. Nf1 {[%clk 0:01:00.6]}
19... d4 {[%clk 0:02:35.9]} 20. Qf2 {[%clk 0:00:55.2]} 20... Rfd8 {[%clk
0:02:28.8]} 21. Ng3 {[%clk 0:00:47.7]} 21... Ne5 {[%clk 0:02:25.7]} 22. R3d2
{[%clk 0:00:47.8]} 22... Qf8 {[%clk 0:02:15.7]} 23. h3 {[%clk 0:00:34.3]} 23...
g6 {[%clk 0:02:13.8]} 24. Kh2 {[%clk 0:00:29.9]} 24... f5 {[%clk 0:02:08.1]} 25.
exf5 {[%clk 0:00:27.3]} 25... gxf5 {[%clk 0:02:09]} 26. Re1 {[%clk 0:00:26]}
26... Ng6 {[%clk 0:02:07.8]} 27. Rde2 {[%clk 0:00:20.7]} 27... Qd6 {[%clk
0:01:56.2]} 28. Re6 {[%clk 0:00:16.6]} 28... Qc7 {[%clk 0:01:54.9]} 29. Bc1
{[%clk 0:00:12]} 29... Bd5 {[%clk 0:01:51.7]} 30. Re8+ {[%clk 0:00:10.1]} 30...
Rxe8 {[%clk 0:01:52]} 31. Rxe8+ {[%clk 0:00:10.8]} 31... Kf7 {[%clk 0:01:52.7]}
32. Re1 {[%clk 0:00:05.5]} 32... Be6 {[%clk 0:01:47.6]} 33. Kg1 {[%clk 0:00:05]}
33... c4 {[%clk 0:01:46.4]} 34. Bg5 {[%clk 0:00:03]} 34... d3 {[%clk 0:01:45.1]}
35. cxd3 {[%clk 0:00:02.9]} 35... cxd3 {[%clk 0:01:46]} 36. Rd1 {[%clk
0:00:02.3]} 36... a5 {[%clk 0:01:39.4]} 37. Qe3 {[%clk 0:00:02.7]} 37... Qc2
{[%clk 0:01:37.9]} 38. Rd2 {[%clk 0:00:02.5]} 38... Qc1+ {[%clk 0:01:36.1]} 39.
Kh2 {[%clk 0:00:03.2]} 39... Qb1 {[%clk 0:01:29.7]} 40. h4 {[%clk 0:00:02.9]}
40... Ne7 {[%clk 0:01:28.4]} 41. h5 {[%clk 0:00:02.9]} 41... a4 {[%clk
0:01:27.9]} 42. bxa4 {[%clk 0:00:02.5]} 42... bxa4 {[%clk 0:01:28.8]} 43. Qe5
{[%clk 0:00:03.1]} 43... Nd5 {[%clk 0:01:26.9]} 44. Nxf5 {[%clk 0:00:03.1]}
44... Bxf5 {[%clk 0:01:27.1]} 45. Qxf5+ {[%clk 0:00:03.6]} 45... Ke8 {[%clk
0:01:23.3]} 46. Rxd3 {[%clk 0:00:02.5]} 46... Qb8+ {[%clk 0:01:21.9]} 47. Kh1
{[%clk 0:00:01.4]} 47... Qd6 {[%clk 0:01:18.6]} 48. Be3 {[%clk 0:00:00.5]} 48...
Nxe3 {[%clk 0:01:09]} 49. Qe4+ {[%clk 0:00:01.3]} 49... Qe7 {[%clk 0:01:06.7]}
50. Rxd7 {[%clk 0:00:01.7]} 50... Qxe4 {[%clk 0:01:06.1]} 51. fxe4 {[%clk
0:00:01.5]} 51... Kxd7 {[%clk 0:01:06.6]} 52. Kg1 {[%clk 0:00:02]} 52... Ke6
{[%clk 0:01:06.2]} 53. Kf2 {[%clk 0:00:02.3]} 53... Nd1+ {[%clk 0:01:06.5]} 54.
Kf3 {[%clk 0:00:01.6]} 54... Nc3 {[%clk 0:01:07.3]} 55. a3 {[%clk 0:00:02.2]}
55... Nb1 {[%clk 0:01:07.1]} 0-1

[Event "Early-Titled-Tuesday-Blitz-May-07-2024"]
[Site "Chess.com"]
[Date "2024.05.07"]
[Round "6"]
[White "Larina_Maria"]
[Black "MikeWizard"]
[Result "1-0"]
[WhiteElo "2344"]
[BlackElo "2042"]
[TimeControl "180+1"]
[EndTime "9:11:15 PDT"]
[Termination "Larina_Maria won by checkmate"]

1. e4 {[%clk 0:03:00]} 1... d6 {[%clk 0:02:59.7]} 2. d4 {[%clk 0:02:58.2]} 2...
Nf6 {[%clk 0:02:59.6]} 3. Nc3 {[%clk 0:02:58.1]} 3... Nbd7 {[%clk 0:02:59.5]} 4.
f3 {[%clk 0:02:55.7]} 4... e5 {[%clk 0:02:58]} 5. Be3 {[%clk 0:02:55.5]} 5...
Be7 {[%clk 0:02:57.3]} 6. Qd2 {[%clk 0:02:50.4]} 6... c6 {[%clk 0:02:57.1]} 7.
O-O-O {[%clk 0:02:43.9]} 7... Qc7 {[%clk 0:02:56.7]} 8. g4 {[%clk 0:02:43.9]}
8... h6 {[%clk 0:02:55.2]} 9. h4 {[%clk 0:02:43.8]} 9... Qa5 {[%clk 0:02:46.7]}
10. Kb1 {[%clk 0:02:43.4]} 10... Nb6 {[%clk 0:02:41.6]} 11. Nh3 {[%clk
0:02:35.2]} 11... Be6 {[%clk 0:02:38.6]} 12. g5 {[%clk 0:02:27.7]} 12... Nh5
{[%clk 0:02:26.3]} 13. Rg1 {[%clk 0:02:16.3]} 13... Nc4 {[%clk 0:02:08.4]} 14.
Bxc4 {[%clk 0:02:13.6]} 14... Bxc4 {[%clk 0:02:08.3]} 15. g6 {[%clk 0:01:58.4]}
15... f6 {[%clk 0:01:54.7]} 16. f4 {[%clk 0:01:55.3]} 16... Nxf4 {[%clk
0:01:49.8]} 17. Nxf4 {[%clk 0:01:54.5]} 17... exf4 {[%clk 0:01:49.6]} 18. Bxf4
{[%clk 0:01:55.4]} 18... O-O-O {[%clk 0:01:40.6]} 19. Qg2 {[%clk 0:01:26.2]}
19... Be6 {[%clk 0:01:20.5]} 20. d5 {[%clk 0:01:21.6]} 20... cxd5 {[%clk
0:01:18.6]} 21. Nxd5 {[%clk 0:01:20.9]} 21... Rd7 {[%clk 0:01:04.9]} 22. Rd3
{[%clk 0:01:15.4]} 22... Re8 {[%clk 0:00:52.7]} 23. Rgd1 {[%clk 0:01:13.6]}
23... Kb8 {[%clk 0:00:43.6]} 24. Nxe7 {[%clk 0:01:10.8]} 24... Rdxe7 {[%clk
0:00:42.4]} 25. Bxd6+ {[%clk 0:01:10.5]} 25... Ka8 {[%clk 0:00:39.2]} 26. Bxe7
{[%clk 0:00:58.3]} 26... Qxa2+ {[%clk 0:00:38.9]} 27. Kc1 {[%clk 0:00:59.1]}
27... Qa1+ {[%clk 0:00:36.9]} 28. Kd2 {[%clk 0:00:59.5]} 28... Qxb2 {[%clk
0:00:34.9]} 29. Ba3 {[%clk 0:00:50.9]} 29... Qe5 {[%clk 0:00:30.9]} 30. Bd6
{[%clk 0:00:24.5]} 30... Qa5+ {[%clk 0:00:28.7]} 31. Ke3 {[%clk 0:00:15.3]}
31... Qh5 {[%clk 0:00:27.3]} 32. Bf4 {[%clk 0:00:13.6]} 32... a5 {[%clk
0:00:23.9]} 33. Rd8+ {[%clk 0:00:12.9]} 33... Rxd8 {[%clk 0:00:23.7]} 34. Rxd8+
{[%clk 0:00:13.8]} 34... Ka7 {[%clk 0:00:24]} 35. Qd2 {[%clk 0:00:12.9]} 35...
b6 {[%clk 0:00:21.8]} 36. Qd6 {[%clk 0:00:10.9]} 36... Bc4 {[%clk 0:00:18.5]}
37. Qc7+ {[%clk 0:00:10.7]} 37... Ka6 {[%clk 0:00:18]} 38. Qxc4+ {[%clk
0:00:10.9]} 38... Kb7 {[%clk 0:00:13.8]} 39. Qc8+ {[%clk 0:00:10.7]} 39... Ka7
{[%clk 0:00:13.1]} 40. Rd7# {[%clk 0:00:11.4]} 1-0

[Event "Early-Titled-Tuesday-Blitz-May-07-2024"]
[Site "Chess.com"]
[Date "2024.05.07"]
[Round "6"]
[White "pfalcon1949"]
[Black "Tsyhanchuk_Stanislav"]
[Result "1-0"]
[WhiteElo "1950"]
[BlackElo "2304"]
[TimeControl "180+1"]
[EndTime "9:11:16 PDT"]
[Termination "pfalcon1949 won by checkmate"]

1. e4 {[%clk 0:02:57.4]} 1... c5 {[%clk 0:03:00.4]} 2. Nf3 {[%clk 0:02:57.5]}
2... e6 {[%clk 0:03:01]} 3. d4 {[%clk 0:02:57.7]} 3... cxd4 {[%clk 0:03:01.9]}
4. Nxd4 {[%clk 0:02:58]} 4... a6 {[%clk 0:03:02.5]} 5. c4 {[%clk 0:02:55.7]}
5... Nf6 {[%clk 0:02:59]} 6. Nc3 {[%clk 0:02:55.7]} 6... Qc7 {[%clk 0:02:57.3]}
7. a3 {[%clk 0:02:54.5]} 7... d6 {[%clk 0:02:51.2]} 8. f4 {[%clk 0:02:53.5]}
8... Nbd7 {[%clk 0:02:51.1]} 9. Bd3 {[%clk 0:02:52.8]} 9... Nc5 {[%clk
0:02:48.8]} 10. Bc2 {[%clk 0:02:43.7]} 10... b6 {[%clk 0:02:38.2]} 11. b4 {[%clk
0:02:42.8]} 11... Ncd7 {[%clk 0:02:35]} 12. Bd3 {[%clk 0:02:41.1]} 12... Bb7
{[%clk 0:02:32.2]} 13. O-O {[%clk 0:02:40.3]} 13... Be7 {[%clk 0:02:30]} 14. Be3
{[%clk 0:02:36.8]} 14... e5 {[%clk 0:02:25.6]} 15. Nf5 {[%clk 0:02:30.4]} 15...
Bf8 {[%clk 0:02:00.2]} 16. Rc1 {[%clk 0:02:06]} 16... g6 {[%clk 0:01:54.1]} 17.
Ng3 {[%clk 0:02:00.4]} 17... Bh6 {[%clk 0:01:53.8]} 18. Qe2 {[%clk 0:01:56.3]}
18... a5 {[%clk 0:01:38.6]} 19. Kh1 {[%clk 0:01:41.8]} 19... O-O {[%clk
0:01:34.1]} 20. fxe5 {[%clk 0:01:31.8]} 20... Bxe3 {[%clk 0:01:28.5]} 21. Qxe3
{[%clk 0:01:24.3]} 21... Nxe5 {[%clk 0:01:25.6]} 22. Rxf6 {[%clk 0:01:20.4]}
22... Ng4 {[%clk 0:01:20.1]} 23. Qf3 {[%clk 0:01:12.8]} 23... Nxf6 {[%clk
0:01:18.6]} 24. Qxf6 {[%clk 0:01:13.7]} 24... axb4 {[%clk 0:01:18.3]} 25. axb4
{[%clk 0:01:13.1]} 25... Ra3 {[%clk 0:01:07.9]} 26. e5 {[%clk 0:00:48.4]} 26...
Qd7 {[%clk 0:00:54.6]} 27. Nh5 {[%clk 0:00:42.6]} 27... gxh5 {[%clk 0:00:47.2]}
28. Bf5 {[%clk 0:00:22]} 28... Qc6 {[%clk 0:00:37.7]} 29. Nd5 {[%clk 0:00:15.3]}
29... Re8 {[%clk 0:00:11.5]} 30. Qh6 {[%clk 0:00:11.7]} 30... Ra1 {[%clk
0:00:02.9]} 31. Nf6+ {[%clk 0:00:10.7]} 31... Kh8 {[%clk 0:00:01.8]} 32. Qxh7#
{[%clk 0:00:11]} 1-0

[Event "Early-Titled-Tuesday-Blitz-May-07-2024"]
[Site "Chess.com"]
[Date "2024.05.07"]
[Round "6"]
[White "ab-lsv"]
[Black "dennisodessa"]
[Result "0-1"]
[WhiteElo "2378"]
[BlackElo "2548"]
[TimeControl "180+1"]
[EndTime "9:11:18 PDT"]
[Termination "dennisodessa won on time"]

1. d4 {[%clk 0:02:59.5]} 1... Nf6 {[%clk 0:02:58.9]} 2. c4 {[%clk 0:02:59.8]}
2... e6 {[%clk 0:02:59.4]} 3. Nc3 {[%clk 0:03:00]} 3... Bb4 {[%clk 0:03:00.1]}
4. Qc2 {[%clk 0:03:00.5]} 4... d5 {[%clk 0:02:57.4]} 5. cxd5 {[%clk 0:03:01.4]}
5... exd5 {[%clk 0:02:58.1]} 6. Bg5 {[%clk 0:03:00.8]} 6... O-O {[%clk
0:02:56.4]} 7. e3 {[%clk 0:03:01.1]} 7... c6 {[%clk 0:02:52.1]} 8. Bd3 {[%clk
0:03:00.8]} 8... h6 {[%clk 0:02:46.5]} 9. Bh4 {[%clk 0:03:00.6]} 9... Re8 {[%clk
0:02:43.3]} 10. Ne2 {[%clk 0:02:59.8]} 10... Nbd7 {[%clk 0:02:42.3]} 11. O-O
{[%clk 0:02:59.7]} 11... Nf8 {[%clk 0:02:35]} 12. a3 {[%clk 0:02:47.7]} 12...
Be7 {[%clk 0:02:34.3]} 13. f3 {[%clk 0:02:41.7]} 13... Ne6 {[%clk 0:02:11.1]}
14. Rad1 {[%clk 0:02:34.3]} 14... c5 {[%clk 0:02:09.2]} 15. Kh1 {[%clk 0:02:20]}
15... c4 {[%clk 0:01:50.7]} 16. Bf5 {[%clk 0:02:19.1]} 16... Ng5 {[%clk
0:01:45.9]} 17. Bxc8 {[%clk 0:01:59.4]} 17... Rxc8 {[%clk 0:01:46.8]} 18. e4
{[%clk 0:01:59.4]} 18... dxe4 {[%clk 0:01:47.1]} 19. fxe4 {[%clk 0:01:59.3]}
19... Nfxe4 {[%clk 0:01:47.6]} 20. d5 {[%clk 0:01:00.8]} 20... Nc5 {[%clk
0:01:09]} 21. Nd4 {[%clk 0:00:32.6]} 21... Nd3 {[%clk 0:01:05.4]} 22. Nf5 {[%clk
0:00:27.4]} 22... Bf6 {[%clk 0:01:05.7]} 23. d6 {[%clk 0:00:19]} 23... Qd7
{[%clk 0:00:51.8]} 24. Nd5 {[%clk 0:00:17.4]} 24... Bd8 {[%clk 0:00:38.3]} 25.
Rxd3 {[%clk 0:00:14.2]} 25... cxd3 {[%clk 0:00:36.7]} 26. Qxd3 {[%clk
0:00:14.7]} 26... Kh8 {[%clk 0:00:26.2]} 27. Qd4 {[%clk 0:00:11.8]} 27... f6
{[%clk 0:00:26.3]} 28. Bg3 {[%clk 0:00:07.3]} 28... Re4 {[%clk 0:00:20.5]} 29.
Qd2 {[%clk 0:00:06.2]} 29... Rc5 {[%clk 0:00:17.4]} 30. Nde3 {[%clk 0:00:02.5]}
30... Re6 {[%clk 0:00:14]} 31. h4 {[%clk 0:00:01.6]} 31... Ne4 {[%clk
0:00:14.6]} 0-1

[Event "Early-Titled-Tuesday-Blitz-May-07-2024"]
[Site "Chess.com"]
[Date "2024.05.07"]
[Round "6"]
[White "juanchesst"]
[Black "vladgoncharov"]
[Result "1-0"]
[WhiteElo "2671"]
[BlackElo "2589"]
[TimeControl "180+1"]
[EndTime "9:11:19 PDT"]
[Termination "juanchesst won by checkmate"]

1. d4 {[%clk 0:03:00.9]} 1... Nf6 {[%clk 0:02:57.7]} 2. c4 {[%clk 0:03:00.7]}
2... e6 {[%clk 0:02:58]} 3. Nf3 {[%clk 0:03:00.8]} 3... Bb4+ {[%clk 0:02:56.5]}
4. Bd2 {[%clk 0:03:00.9]} 4... Be7 {[%clk 0:02:55.8]} 5. g3 {[%clk 0:03:00.4]}
5... d5 {[%clk 0:02:55.5]} 6. Bg2 {[%clk 0:02:59]} 6... c6 {[%clk 0:02:53]} 7.
b3 {[%clk 0:02:58.1]} 7... O-O {[%clk 0:02:50.7]} 8. O-O {[%clk 0:02:58]} 8...
b5 {[%clk 0:02:50.9]} 9. Bc3 {[%clk 0:02:57.4]} 9... bxc4 {[%clk 0:02:46.3]} 10.
bxc4 {[%clk 0:02:57.3]} 10... Ba6 {[%clk 0:02:46.4]} 11. Nbd2 {[%clk 0:02:53.3]}
11... Nbd7 {[%clk 0:02:41.5]} 12. Qa4 {[%clk 0:02:47.9]} 12... Qc8 {[%clk
0:02:41.3]} 13. Rac1 {[%clk 0:02:41.3]} 13... Nb6 {[%clk 0:02:39]} 14. Qa5
{[%clk 0:02:31.3]} 14... Bxc4 {[%clk 0:02:19.2]} 15. Rfe1 {[%clk 0:02:06]} 15...
Bb5 {[%clk 0:01:58.7]} 16. Bb4 {[%clk 0:01:58.6]} 16... Bxb4 {[%clk 0:01:54.8]}
17. Qxb4 {[%clk 0:01:59.2]} 17... a5 {[%clk 0:01:54.6]} 18. Qa3 {[%clk 0:01:45]}
18... Nfd7 {[%clk 0:01:51.5]} 19. e4 {[%clk 0:01:44]} 19... Qa6 {[%clk
0:01:47.7]} 20. Nb3 {[%clk 0:01:37.9]} 20... Nc4 {[%clk 0:01:40]} 21. Qe7 {[%clk
0:01:37.6]} 21... Qa7 {[%clk 0:01:34.9]} 22. Qh4 {[%clk 0:01:15]} 22... a4
{[%clk 0:01:30.9]} 23. Na1 {[%clk 0:00:42.8]} 23... Nf6 {[%clk 0:01:18.7]} 24.
e5 {[%clk 0:00:35.9]} 24... Ne4 {[%clk 0:01:13.5]} 25. Nc2 {[%clk 0:00:34.7]}
25... h6 {[%clk 0:01:05.2]} 26. Ne3 {[%clk 0:00:32.7]} 26... Nxe3 {[%clk
0:01:02.4]} 27. Rxe3 {[%clk 0:00:33.6]} 27... Bc4 {[%clk 0:01:02.4]} 28. Rxc4
{[%clk 0:00:31.7]} 28... dxc4 {[%clk 0:00:54.2]} 29. Qxe4 {[%clk 0:00:31]} 29...
Rab8 {[%clk 0:00:53.1]} 30. Bf1 {[%clk 0:00:29.8]} 30... Qa6 {[%clk 0:00:48.2]}
31. Rc3 {[%clk 0:00:29.4]} 31... Rb4 {[%clk 0:00:46.7]} 32. a3 {[%clk
0:00:26.8]} 32... Rb2 {[%clk 0:00:46.6]} 33. Bxc4 {[%clk 0:00:25.8]} 33... Qb6
{[%clk 0:00:46.1]} 34. Kg2 {[%clk 0:00:25.6]} 34... Rd8 {[%clk 0:00:42.5]} 35.
Bd3 {[%clk 0:00:25.6]} 35... g6 {[%clk 0:00:40.4]} 36. h4 {[%clk 0:00:26]} 36...
h5 {[%clk 0:00:40]} 37. Rxc6 {[%clk 0:00:24.8]} 37... Qb3 {[%clk 0:00:35.2]} 38.
Rc7 {[%clk 0:00:19.7]} 38... Qa2 {[%clk 0:00:23.7]} 39. Rxf7 {[%clk 0:00:16.9]}
39... Rxf2+ {[%clk 0:00:22.5]} 40. Kh3 {[%clk 0:00:17.5]} 40... Kxf7 {[%clk
0:00:21.7]} 41. Qxg6+ {[%clk 0:00:17.8]} 41... Ke7 {[%clk 0:00:21.9]} 42. Qg7+
{[%clk 0:00:18.3]} 42... Ke8 {[%clk 0:00:14.2]} 43. Bg6# {[%clk 0:00:17.9]} 1-0

[Event "Early-Titled-Tuesday-Blitz-May-07-2024"]
[Site "Chess.com"]
[Date "2024.05.07"]
[Round "6"]
[White "nuadvaga"]
[Black "ploxoi"]
[Result "0-1"]
[WhiteElo "2148"]
[BlackElo "2323"]
[TimeControl "180+1"]
[EndTime "9:11:20 PDT"]
[Termination "ploxoi won on time"]

1. d4 {[%clk 0:03:00.9]} 1... e6 {[%clk 0:03:00]} 2. c4 {[%clk 0:02:59.8]} 2...
d5 {[%clk 0:03:00.3]} 3. Nc3 {[%clk 0:02:58.8]} 3... c6 {[%clk 0:03:00.7]} 4.
Nf3 {[%clk 0:02:58.8]} 4... dxc4 {[%clk 0:03:00.8]} 5. a4 {[%clk 0:02:57.4]}
5... Bb4 {[%clk 0:03:00]} 6. e4 {[%clk 0:02:55.6]} 6... Nf6 {[%clk 0:02:57.7]}
7. e5 {[%clk 0:02:52.7]} 7... Nd5 {[%clk 0:02:56.9]} 8. Qc2 {[%clk 0:02:48.2]}
8... b5 {[%clk 0:02:56.1]} 9. Be2 {[%clk 0:02:44.1]} 9... Bb7 {[%clk 0:02:52.6]}
10. O-O {[%clk 0:02:43.3]} 10... a6 {[%clk 0:02:53.2]} 11. Ng5 {[%clk
0:02:41.9]} 11... h6 {[%clk 0:02:51.4]} 12. Nge4 {[%clk 0:02:40.7]} 12... Nd7
{[%clk 0:02:51]} 13. Bd2 {[%clk 0:02:34]} 13... Be7 {[%clk 0:02:48.9]} 14. axb5
{[%clk 0:02:30.6]} 14... cxb5 {[%clk 0:02:47.4]} 15. f4 {[%clk 0:02:27.6]} 15...
g6 {[%clk 0:02:40.3]} 16. Bf3 {[%clk 0:02:21.7]} 16... Rc8 {[%clk 0:02:22.1]}
17. g4 {[%clk 0:02:09.6]} 17... N7b6 {[%clk 0:02:06.1]} 18. Bg2 {[%clk
0:02:09.3]} 18... Nb4 {[%clk 0:02:05.9]} 19. Qb1 {[%clk 0:01:54.8]} 19... Qxd4+
{[%clk 0:02:05.1]} 20. Kh1 {[%clk 0:01:55.4]} 20... N6d5 {[%clk 0:01:57.6]} 21.
Nxd5 {[%clk 0:01:46.3]} 21... Nxd5 {[%clk 0:01:49.7]} 22. Qe1 {[%clk 0:01:29.7]}
22... h5 {[%clk 0:01:47]} 23. Rd1 {[%clk 0:01:07.3]} 23... Qxb2 {[%clk
0:01:31.5]} 24. f5 {[%clk 0:00:39.6]} 24... hxg4 {[%clk 0:01:22]} 25. fxg6
{[%clk 0:00:38.4]} 25... fxg6 {[%clk 0:01:21.1]} 26. Nf6+ {[%clk 0:00:32.5]}
26... Bxf6 {[%clk 0:01:20.3]} 27. exf6 {[%clk 0:00:33.4]} 27... Kf7 {[%clk
0:01:20.9]} 28. Rf2 {[%clk 0:00:24.7]} 28... g3 {[%clk 0:00:48.3]} 29. Re2
{[%clk 0:00:20]} 29... Rxh2+ {[%clk 0:00:43.8]} 30. Kg1 {[%clk 0:00:20.5]} 30...
Qd4+ {[%clk 0:00:23.7]} 31. Be3 {[%clk 0:00:20.3]} 31... Rxg2+ {[%clk
0:00:24.3]} 32. Kxg2 {[%clk 0:00:17.8]} 32... Nxe3+ {[%clk 0:00:24.3]} 33. Kxg3
{[%clk 0:00:17.4]} 33... Nf5+ {[%clk 0:00:20.3]} 34. Kh2 {[%clk 0:00:13.5]}
34... Qf4+ {[%clk 0:00:19.8]} 35. Kg1 {[%clk 0:00:11]} 35... Qg4+ {[%clk
0:00:20.1]} 36. Kh2 {[%clk 0:00:05.6]} 36... Rh8+ {[%clk 0:00:19.8]} 0-1

[Event "Early-Titled-Tuesday-Blitz-May-07-2024"]
[Site "Chess.com"]
[Date "2024.05.07"]
[Round "6"]
[White "RantomOpening"]
[Black "Goryachkina"]
[Result "0-1"]
[WhiteElo "2512"]
[BlackElo "2695"]
[TimeControl "180+1"]
[EndTime "9:11:25 PDT"]
[Termination "Goryachkina won by resignation"]

1. c4 {[%clk 0:03:00.9]} 1... Nf6 {[%clk 0:02:58]} 2. Nf3 {[%clk 0:03:00.7]}
2... g6 {[%clk 0:02:57]} 3. Nc3 {[%clk 0:03:00.5]} 3... Bg7 {[%clk 0:02:56.6]}
4. e4 {[%clk 0:03:00.9]} 4... e5 {[%clk 0:02:53.1]} 5. Nxe5 {[%clk 0:02:58.3]}
5... O-O {[%clk 0:02:51]} 6. d4 {[%clk 0:02:58.3]} 6... Re8 {[%clk 0:02:47.4]}
7. Be2 {[%clk 0:02:55.5]} 7... c5 {[%clk 0:02:41.8]} 8. Nf3 {[%clk 0:02:53.8]}
8... Nxe4 {[%clk 0:02:36]} 9. Be3 {[%clk 0:02:50.5]} 9... cxd4 {[%clk
0:02:25.7]} 10. Bxd4 {[%clk 0:02:49.1]} 10... Nxc3 {[%clk 0:02:24.4]} 11. bxc3
{[%clk 0:02:47.2]} 11... Bxd4 {[%clk 0:02:11.7]} 12. cxd4 {[%clk 0:02:36.2]}
12... Qe7 {[%clk 0:02:03.2]} 13. Qd2 {[%clk 0:02:28.7]} 13... Kg7 {[%clk
0:01:47.3]} 14. a4 {[%clk 0:02:18.2]} 14... d5 {[%clk 0:01:43.3]} 15. c5 {[%clk
0:02:10.1]} 15... Nc6 {[%clk 0:01:26]} 16. Ra3 {[%clk 0:02:09.1]} 16... Bg4
{[%clk 0:01:24.4]} 17. Re3 {[%clk 0:02:07.9]} 17... Qf6 {[%clk 0:01:24.5]} 18.
O-O {[%clk 0:02:06.6]} 18... Re4 {[%clk 0:01:13.8]} 19. Rxe4 {[%clk 0:01:15.5]}
19... dxe4 {[%clk 0:01:13.9]} 20. Ne5 {[%clk 0:01:15.3]} 20... Bxe2 {[%clk
0:01:13.9]} 21. Qxe2 {[%clk 0:01:14.1]} 21... Nxe5 {[%clk 0:01:12.3]} 22. dxe5
{[%clk 0:01:15]} 22... Qxe5 {[%clk 0:01:12.7]} 23. Qb5 {[%clk 0:01:14.9]} 23...
Qe7 {[%clk 0:01:06.4]} 24. Re1 {[%clk 0:01:09.8]} 24... Rc8 {[%clk 0:01:03.8]}
25. Qa5 {[%clk 0:01:03.1]} 25... a6 {[%clk 0:00:57.4]} 26. Qc3+ {[%clk
0:00:47.6]} 26... Kg8 {[%clk 0:00:57.1]} 27. g3 {[%clk 0:00:36.5]} 27... Rxc5
{[%clk 0:00:49.1]} 28. Rxe4 {[%clk 0:00:36.2]} 28... Qxe4 {[%clk 0:00:34.4]} 29.
Qxc5 {[%clk 0:00:36]} 29... Qxa4 {[%clk 0:00:31]} 30. Qc8+ {[%clk 0:00:35.9]}
30... Kg7 {[%clk 0:00:31.1]} 31. Qxb7 {[%clk 0:00:34.7]} 31... Qa1+ {[%clk
0:00:29.8]} 32. Kg2 {[%clk 0:00:34.7]} 32... a5 {[%clk 0:00:30.2]} 33. h4 {[%clk
0:00:24.3]} 33... h5 {[%clk 0:00:30.1]} 34. f3 {[%clk 0:00:19.7]} 34... a4
{[%clk 0:00:29.7]} 35. g4 {[%clk 0:00:19.8]} 35... a3 {[%clk 0:00:29.5]} 36. Qc7
{[%clk 0:00:15]} 36... Qb2+ {[%clk 0:00:29.4]} 37. Kh3 {[%clk 0:00:15.1]} 37...
a2 {[%clk 0:00:27.5]} 38. gxh5 {[%clk 0:00:15.5]} 38... a1=Q {[%clk 0:00:24.2]}
39. h6+ {[%clk 0:00:15.3]} 39... Kxh6 {[%clk 0:00:23.9]} 40. Qf4+ {[%clk
0:00:11.5]} 40... Kg7 {[%clk 0:00:23.5]} 0-1

[Event "Early-Titled-Tuesday-Blitz-May-07-2024"]
[Site "Chess.com"]
[Date "2024.05.07"]
[Round "6"]
[White "Flaccidmoves"]
[Black "ValiantCeleb"]
[Result "1/2-1/2"]
[WhiteElo "2397"]
[BlackElo "2237"]
[TimeControl "180+1"]
[EndTime "9:11:27 PDT"]
[Termination "Game drawn by agreement"]

1. e4 {[%clk 0:03:00.9]} 1... e5 {[%clk 0:02:58.9]} 2. Bc4 {[%clk 0:02:58.7]}
2... Nf6 {[%clk 0:02:57.8]} 3. d3 {[%clk 0:02:58.1]} 3... Nc6 {[%clk 0:02:55.7]}
4. f4 {[%clk 0:02:56.3]} 4... exf4 {[%clk 0:02:44.5]} 5. Bxf4 {[%clk 0:02:55.5]}
5... d5 {[%clk 0:02:35.7]} 6. exd5 {[%clk 0:02:55]} 6... Nxd5 {[%clk 0:02:36.3]}
7. Bg3 {[%clk 0:02:26.1]} 7... Be6 {[%clk 0:02:33]} 8. Nf3 {[%clk 0:02:25.5]}
8... Ne3 {[%clk 0:02:32.1]} 9. Qe2 {[%clk 0:02:24.6]} 9... Nxc4 {[%clk
0:02:25.1]} 10. dxc4 {[%clk 0:02:24.5]} 10... Bc5 {[%clk 0:02:24.9]} 11. Nc3
{[%clk 0:02:24.1]} 11... Nd4 {[%clk 0:02:19.7]} 12. Nxd4 {[%clk 0:02:19]} 12...
Bxd4 {[%clk 0:01:55.8]} 13. Rd1 {[%clk 0:01:34.4]} 13... Bxc3+ {[%clk
0:01:52.7]} 14. bxc3 {[%clk 0:01:34.1]} 14... Qf6 {[%clk 0:01:29.6]} 15. Be5
{[%clk 0:01:24.8]} 15... Qh4+ {[%clk 0:01:28.6]} 16. g3 {[%clk 0:01:24.8]} 16...
Qxc4 {[%clk 0:01:28.3]} 17. Qxc4 {[%clk 0:01:24.6]} 17... Bxc4 {[%clk
0:01:27.6]} 18. Bxg7 {[%clk 0:01:24.8]} 18... Rg8 {[%clk 0:01:20.5]} 19. Be5
{[%clk 0:01:24.3]} 19... c6 {[%clk 0:01:11.5]} 20. Kf2 {[%clk 0:01:23.7]} 20...
Rg6 {[%clk 0:01:00.6]} 21. a3 {[%clk 0:01:16]} 21... Re6 {[%clk 0:00:51.2]} 22.
Rhe1 {[%clk 0:01:13.8]} 22... Rd8 {[%clk 0:00:48.6]} 23. Rxd8+ {[%clk
0:01:09.1]} 23... Kxd8 {[%clk 0:00:48.2]} 24. h4 {[%clk 0:01:00]} 24... Ke7
{[%clk 0:00:34.8]} 25. g4 {[%clk 0:00:56.7]} 25... f6 {[%clk 0:00:31.7]} 26. Bd4
{[%clk 0:00:56.1]} 26... Rxe1 {[%clk 0:00:28.3]} 27. Kxe1 {[%clk 0:00:57]} 27...
b6 {[%clk 0:00:28.3]} 28. g5 {[%clk 0:00:50.1]} 28... fxg5 {[%clk 0:00:27.3]}
29. hxg5 {[%clk 0:00:51]} 29... c5 {[%clk 0:00:26.4]} 30. Bf6+ {[%clk
0:00:50.1]} 30... Ke6 {[%clk 0:00:26.8]} 31. Kd2 {[%clk 0:00:50.3]} 31... Kf5
{[%clk 0:00:25.7]} 32. Bd8 {[%clk 0:00:50]} 32... Bd5 {[%clk 0:00:21.7]} 33. Kd3
{[%clk 0:00:45]} 33... Be4+ {[%clk 0:00:21.2]} 34. Kc4 {[%clk 0:00:29.3]} 34...
Bxc2 {[%clk 0:00:20.1]} 35. Kb5 {[%clk 0:00:29.6]} 35... Bd3+ {[%clk 0:00:20.1]}
36. Kc6 {[%clk 0:00:28.9]} 36... Be4+ {[%clk 0:00:17.7]} 37. Kc7 {[%clk
0:00:24.3]} 37... b5 {[%clk 0:00:16.7]} 38. Kb8 {[%clk 0:00:23.7]} 38... a6
{[%clk 0:00:12.1]} 39. Ka7 {[%clk 0:00:23.3]} 39... Bd3 {[%clk 0:00:12.4]} 40.
Kb6 {[%clk 0:00:18.4]} 40... b4 {[%clk 0:00:09.7]} 41. axb4 {[%clk 0:00:17.4]}
41... cxb4 {[%clk 0:00:10.4]} 42. cxb4 {[%clk 0:00:17.7]} 42... Bb5 {[%clk
0:00:11]} 43. Kc5 {[%clk 0:00:15.3]} 1/2-1/2